lending/lending_fUSD_20240731
["ID","MTS","AMOUNT","RATE_DAILY","PERIOD"]
[333715599,1722401432136,-1070.01728261,0.00010899,2]
[333715600,1722401432148,-254.67802093,0.00010899,2]
[333715601,1722401432158,-995.11070039,0.00010899,2]
[333715603,1722401432170,-329.58460315,0.00010899,2]
[333715604,1722401432179,-1324.69530354,0.00010899,2]
[333715606,1722401432188,-1324.69530354,0.00010899,2]
[333715607,1722401432198,-1324.69530354,0.000109,2]
[333715608,1722401432207,-1324.69530354,0.000109,2]
[333715609,1722401432216,-1324.69530354,0.000109,2]
[333715610,1722401432228,-1324.69530354,0.000109,2]
[333715611,1722401432238,-4856.09895081,0.000109,2]
[333715612,1722401432247,-3468.15547197,0.000109,2]
[333715613,1722401432259,-805.63031946,0.000109,2]
[333715614,1722401432271,-582.31315923,0.000109,2]
[333715615,1722401432281,-1432.98185172,0.000109,2]
[333715616,1722401432292,-2700.0,0.000109,2]
[333715617,1722401432308,-465.33938848,0.000109,2]
[333715620,1722401437417,-257.77771046,0.000109,2]
[333715621,1722401437427,-1324.69530354,0.000109,2]
[333715622,1722401437436,-4856.09895066,0.000109,2]
[333715623,1722401437445,-879.967384,0.000109,2]
[333715624,1722401437456,-398.64828018,0.000109,2]
[333715625,1722401437467,-3577.48328648,0.000109,2]
[333715626,1722401437479,-4856.09895066,0.000109,2]
[333715627,1722401437488,-4856.09895066,0.000109,2]
[333715628,1722401437497,-4692.69998464,0.000109,2]
[333715629,1722401437512,-163.39896602,0.000109,2]
[333715630,1722401437521,-525.10103398,0.000109,2]
[333715631,1722401437533,-676.53111901,0.000109,2]
[333715632,1722401437544,-401.24822874,0.000109,2]
[333715633,1722401437558,-3253.21856893,0.000109,2]
[333715634,1722401437568,-3750.43565537,0.000109,2]
[333715635,1722401437579,-1105.66329529,0.000109,2]
[333715636,1722401437588,-4856.09895066,0.000109,2]
[333715637,1722401437597,-3609.63138304,0.000109,2]
[333715638,1722401437609,-394.12782113,0.000109,2]
[333715639,1722401437627,-585.41820824,0.000109,2]
[333715640,1722401437645,-266.92153825,0.000109,2]
[333715641,1722401437655,-4856.09895066,0.000109,2]
[333715642,1722401437664,-4856.09895066,0.000109,2]
[333715643,1722401437676,-3827.3536711,0.000109,2]
[333715644,1722401437687,-322.92463514,0.000109,2]
[333715645,1722401437703,-598.06377732,0.000109,2]
[333715646,1722401437715,-107.7568671,0.000109,2]
[333715647,1722401437724,-361.74999587,0.000109,2]
[333715648,1722401437735,-3502.24032318,0.000109,2]
[333715649,1722401437746,-992.10863161,0.000109,2]
[333715650,1722401437756,-181.87843653,0.000109,2]
[333715651,1722401437767,-2821.35211378,0.000109,2]
[333715652,1722401437778,-1847.439928,0.000109,2]
[333715653,1722401437789,-5.42847235,0.000109,2]
[333715654,1722401437798,-4856.09895066,0.000109,2]
[333715655,1722401437807,-4856.09895066,0.000109,2]
[333715656,1722401437816,-2844.12468832,0.000109,2]
[333715658,1722401437830,-2011.97426234,0.000109,2]
[333715659,1722401437839,-500.0,0.00010911,2]
[333715660,1722401437848,-500.0,0.00010912,2]
[333715661,1722401437857,-500.0,0.00010912,2]
[333715662,1722401437867,-200.0,0.00010959,2]
[333715663,1722401437876,-250.0,0.00010959,2]
[333715664,1722401437885,-649.8611172,0.00010998,2]
[333715665,1722401437894,-2699.1539387,0.00010998,2]
[333715666,1722401437903,-257.1137724,0.00010998,2]
[333715667,1722401437912,-16925.2531228,0.00010998,2]
[333715668,1722401437921,-210.64448715,0.00010999,2]
[333715669,1722401437931,-5941.19285388,0.00010999,2]
[333715670,1722401437941,-5352.62031794,0.00010999,2]
[333715671,1722401437957,-951.01801304,0.00010999,2]
[333715672,1722401437968,-710.95025,0.00010999,2]
[333715673,1722401438270,-520.190987,0.00010999,2]
[333715674,1722401438281,-714.662132,0.00010999,2]
[333715680,1722401439458,-403.47012699,0.00010999,2]
[333715681,1722401439515,-413.7332465,0.00010999,2]
[333715682,1722401439526,-1058.18044309,0.00010999,2]
[333715683,1722401439539,-4170.03465609,0.00010999,2]
[333715684,1722401441305,-265.1286,0.00010999,2]
[333715685,1722401441316,-455.07799912,0.00010999,2]
[333715686,1722401441327,-1009.71667059,0.00010999,2]
[333715687,1722401441361,-488.90358181,0.00010999,2]
[333715688,1722401441419,-184444.60794479,0.00010999,2]
[333715689,1722401441430,-162342.40672294,0.00010999,2]
[333715690,1722401441439,-84750.11247374,0.00011,2]
[333715691,1722401441449,-2000.99596234,0.00011,2]
[333715692,1722401441458,-4366.38908102,0.00011,2]
[333715693,1722401441468,-1100.0,0.00011,2]
[333715694,1722401441479,-596771.26567951,0.00011,2]
[333715695,1722401441490,-3981.85142367,0.00011,2]
[333715696,1722401441502,-58162.51592602,0.00011,2]
[333715697,1722401441513,-594.155,0.00011,2]
[333715698,1722401441525,-279.13219424,0.00011,2]
[333715699,1722401441540,-1192.0,0.00011,2]
[333715700,1722401441552,-2443.9011765,0.00011,2]
[333715701,1722401441568,-47065.9920305,0.00011,2]
[333715702,1722401441580,-191001.01624056,0.00011,2]
[333715703,1722401441600,-1852.95989709,0.00011,2]
[333715704,1722401441611,-43206.86394789,0.00011,2]
[333715705,1722401441623,-21573.39733213,0.00011,2]
[333715711,1722401442425,-392.81152708,0.00011,2]
[333715712,1722401442437,-8798.02859357,0.00011,2]
[333715714,1722401442485,-622493.6876897,0.00011,2]
[333715716,1722401442497,-758.81890648,0.00011,2]
[333715718,1722401442508,-7424.90500778,0.00011,2]
[333715719,1722401442520,-261.4769987,0.00011,2]
[333715721,1722401442531,-3291.55431609,0.00011,2]
[333715722,1722401442543,-1103.43325584,0.00011,2]
[333715723,1722401442556,-1200.25651494,0.00011,2]
[333715724,1722401442567,-365.0,0.00011,2]
[333715725,1722401442578,-822.9747023,0.00011,2]
[333715726,1722401442610,-6099.87879838,0.00011,2]
[333715727,1722401442621,-11615.68599417,0.00011,2]
[333715728,1722401442669,-612.10217579,0.00011,2]
[333715729,1722401442683,-19285.75170967,0.00011,2]
[333715730,1722401442729,-2164.06068103,0.00011,2]
[333715731,1722401442785,-4344.11817661,0.00011,2]
[333715740,1722401446937,-209.0,0.00010898,2]
[333715741,1722401446947,-2383.34555881,0.00010899,2]
[333715742,1722401446958,-4589.00946056,0.00010899,2]
[333715743,1722401446967,-1359.70162806,0.00011,2]
[333715744,1722401446978,-6330.0,0.00011,2]
[333715745,1722401446999,-565.134902,0.00011,2]
[333715746,1722401447010,-2561.44,0.00011,2]
[333715747,1722401447021,-6337.78998994,0.00011,2]
[333715748,1722401447032,-949.65,0.00011,2]
[333715749,1722401447057,-1129.22978207,0.00011,2]
[333715750,1722401447068,-8259.64506002,0.00011,2]
[333715751,1722401447079,-16288.40638518,0.00011,2]
[333715752,1722401447090,-305.88627258,0.00011,2]
[333715753,1722401447114,-641.677035,0.00011,2]
[333715754,1722401447125,-833.28345775,0.00011,2]
[333715755,1722401447136,-432.05266282,0.00011,2]
[333715756,1722401447175,-251.94072232,0.00011,2]
[333715757,1722401447186,-587.75950266,0.00011,2]
[333715758,1722401447233,-2066.50353201,0.00011,2]
[333715759,1722401447244,-2827.79922,0.00011,2]
[333715760,1722401447254,-3204.7,0.00011,2]
[333715761,1722401447265,-780.97240063,0.00011,2]
[333715762,1722401447289,-79970.33314084,0.00011,2]
[333715763,1722401447300,-2128.25710598,0.00011,2]
[333715765,1722401560392,2947.0,0.00027,120]
[333715767,1722401593057,924.0,0.0001789,120]
[333715768,1722401593563,924.0,0.0001788,120]
[333715769,1722401595000,924.0,0.0001787,120]
[333715770,1722401595063,924.0,0.0001789,120]
[333715771,1722401595138,924.0,0.0001788,120]
[333715772,1722401595496,924.0,0.0001787,120]
[333715773,1722401596000,924.0,0.0001789,120]
[333715774,1722401596454,924.0,0.0001788,120]
[333715775,1722401596913,924.0,0.0001789,120]
[333715776,1722401597390,930.0,0.0001788,120]
[333715777,1722401603281,388.25,0.0001337,30]
[333715779,1722401730631,-276.14,8.513e-05,2]
[333715780,1722401786399,412.01880903,8.513e-05,2]
[333715781,1722401790823,759.85499635,8.513e-05,2]
[333715782,1722401792461,1370.0029794,8.513e-05,2]
[333715783,1722401796624,790.38017243,8.513e-05,2]
[333715784,1722401797802,729.82273578,8.513e-05,2]
[333715785,1722401801328,180.33640813,8.513e-05,2]
[333715786,1722401803539,5481.44389888,8.513e-05,2]
[333715787,1722401803560,10000.0,8.513e-05,2]
[333715788,1722401803582,3342.28448333,8.513e-05,2]
[333715789,1722401806152,253.56029024,8.513e-05,2]
[333715790,1722401807434,1308.98979149,8.513e-05,2]
[333715791,1722401808483,599.10370968,8.513e-05,2]
[333715792,1722401812473,950.45355921,8.513e-05,2]
[333715793,1722401815364,155.0,8.513e-05,2]
[333715794,1722401816341,291.34809509,8.513e-05,2]
[333715795,1722401819312,363.69508992,8.513e-05,2]
[333715796,1722401823874,961.25222025,8.513e-05,2]
[333715797,1722401827538,159.03021431,8.513e-05,2]
[333715798,1722401831341,291.34809509,8.513e-05,2]
[333715799,1722401850711,225.176861,8.513e-05,2]
[333715800,1722401880624,790.38017243,8.513e-05,2]
[333715801,1722401883826,308.37741796,8.513e-05,2]
[333715802,1722401883849,451.47757839,8.513e-05,2]
[333715803,1722401896737,9548.52242161,8.513e-05,2]
[333715804,1722401896760,9275.2059606,8.513e-05,2]
[333715805,1722401901337,180.33640813,8.513e-05,2]
[333715806,1722401902767,173.35949251,8.513e-05,2]
[333715807,1722401910629,371.09813876,8.513e-05,2]
[333715808,1722401910650,419.28203367,8.513e-05,2]
[333715809,1722401917378,162.63646555,8.513e-05,2]
[333715810,1722401931332,180.33640813,8.513e-05,2]
[333715811,1722401962361,291.43978685,8.513e-05,2]
[333715812,1722401975830,759.85499635,8.513e-05,2]
[333715813,1722401991316,790.38017243,8.513e-05,2]
[333715814,1722401991359,401.93575434,8.513e-05,2]
[333715815,1722402002945,150.0,8.513e-05,2]
[333715816,1722402003229,150.0,8.513e-05,2]
[333715817,1722402003447,150.0,8.513e-05,2]
[333715818,1722402003620,150.0,8.513e-05,2]
[333715819,1722402003817,150.0,8.513e-05,2]
[333715820,1722402004011,150.0,8.513e-05,2]
[333715821,1722402004202,150.0,8.513e-05,2]
[333715822,1722402004375,150.0,8.513e-05,2]
[333715823,1722402005114,150.0,8.513e-05,2]
[333715824,1722402008768,150.0,8.513e-05,2]
[333715825,1722402008960,150.0,8.513e-05,2]
[333715826,1722402009134,150.0,8.513e-05,2]
[333715827,1722402009471,150.0,8.513e-05,2]
[333715828,1722402009929,150.0,8.513e-05,2]
[333715829,1722402010099,150.0,8.513e-05,2]
[333715830,1722402010286,150.0,8.513e-05,2]
[333715831,1722402010465,150.0,8.513e-05,2]
[333715832,1722402010637,150.0,8.513e-05,2]
[333715833,1722402010810,150.0,8.513e-05,2]
[333715834,1722402010993,150.0,8.513e-05,2]
[333715835,1722402011191,150.0,8.513e-05,2]
[333715836,1722402011422,150.0,8.513e-05,2]
[333715837,1722402011618,150.0,8.513e-05,2]
[333715838,1722402011792,189.10479724,8.513e-05,2]
[333715840,1722402047345,155.0,8.513e-05,2]
[333715841,1722402051826,759.85499635,8.513e-05,2]
[333715844,1722402079851,790.38017243,8.513e-05,2]
[333715845,1722402092017,304.14,8.219e-05,2]
[333715846,1722402095116,300.0,0.00025,60]
[333715847,1722402107323,300.0,0.00025,60]
[333715848,1722402116871,300.0,0.00025,60]
[333715849,1722402123840,758.98915975,8.513e-05,2]
[333715850,1722402191668,586.66525691,8.513e-05,2]
[333715851,1722402192057,203.71491552,8.513e-05,2]
[333715853,1722402216354,155.0,8.513e-05,2]
[333715854,1722402272762,355.89,0.0001337,30]
[333715926,1722402603471,288.93,8.219e-05,2]
[333715945,1722402632440,-677.01,9.321e-05,2]
[333715947,1722402632452,-1739.99,9.321e-05,2]
[333715949,1722402632463,-4109.36,9.322e-05,2]
[333715951,1722402632473,-438.28,9.357e-05,2]
[333715953,1722402632483,-4317.7191735,9.357e-05,2]
[333715955,1722402632492,-250.0,9.359e-05,2]
[333715956,1722402632502,-965.99,9.397e-05,2]
[333715957,1722402632511,-300.0,9.502e-05,2]
[333715958,1722402632521,-23900.0,9.503e-05,2]
[333715959,1722402632531,-1000.0,9.509e-05,2]
[333715960,1722402632540,-267.64,9.531e-05,2]
[333715961,1722402632550,-1801.86,9.67e-05,2]
[333715962,1722402632560,-2630.7608265,9.67e-05,2]
[333715963,1722402632571,-3499.84714749,9.67e-05,2]
[333715964,1722402632588,-2866.43202601,9.67e-05,2]
[333715965,1722402632597,-215.97,9.867e-05,2]
[333715966,1722402632607,-318.75611069,9.867e-05,2]
[333715967,1722402632618,-163.35388931,9.867e-05,2]
[333715968,1722402632627,-154.63,9.882e-05,2]
[333715969,1722402632636,-150.0,9.888e-05,2]
[333715970,1722402632646,-154.63,9.892e-05,2]
[333715971,1722402632655,-218.1156,9.899e-05,2]
[333715972,1722402632665,-154.63,9.902e-05,2]
[333715973,1722402632674,-154.63,9.912e-05,2]
[333715974,1722402632683,-150.0,9.92e-05,2]
[333715975,1722402632693,-154.63,9.921e-05,2]
[333715976,1722402632702,-154.63,9.931e-05,2]
[333715977,1722402632712,-5050.1576047,0.0001,2]
[333715978,1722402632724,-778.63384695,0.0001,2]
[333715979,1722402632735,-5205.29133225,0.0001,2]
[333715980,1722402632744,-1250.0,0.0001,2]
[333715981,1722402632753,-178.74,0.00010079,2]
[333715982,1722402632763,-499.99,0.00010187,2]
[333715983,1722402632772,-311.2,0.00010187,2]
[333715984,1722402632782,-299.99,0.00010187,2]
[333715986,1722402633135,-891.60712515,0.00010319,2]
[333715987,1722402633145,-947.67050708,0.00010319,2]
[333715988,1722402633155,-17133.61986501,0.00010319,2]
[333715989,1722402633164,-288.93,0.00010438,2]
[333715990,1722402633173,-420.0,0.00010452,2]
[333715991,1722402633183,-150.0,0.00010578,2]
[333715992,1722402633193,-301.51993857,0.00010601,2]
[333715993,1722402633203,-633.03266898,0.00010605,2]
[333715994,1722402633212,-353.066,0.00010613,2]
[333715995,1722402633222,-237.907,0.00010613,2]
[333715996,1722402633231,-1301.0,0.00010613,2]
[333715997,1722402633241,-1000.0,0.00010697,2]
[333715998,1722402633250,-336.56330004,0.00010781,2]
[333715999,1722402633262,-782.43669996,0.00010781,2]
[333716000,1722402633271,-327.585,0.00010799,2]
[333716001,1722402633281,-540.5112,0.00010799,2]
[333716002,1722402633290,-4158.07181204,0.00010899,2]
[333716003,1722402634617,-252.72835385,0.00010899,2]
[333716004,1722402634632,-6191.09699174,0.00010899,2]
[333716005,1722402634656,-2437.14912999,0.00010899,2]
[333716007,1722402638023,-353.01173433,0.00010899,2]
[333716008,1722402638148,-1588.33856323,0.00010899,2]
[333716009,1722402638306,-17344.85041482,0.00010899,2]
[333716010,1722402638316,-14126.7349,0.00010899,2]
[333716011,1722402638326,-56167.2911,0.00010899,2]
[333716012,1722402638341,-500.0,0.00010899,2]
[333716013,1722402638353,-6475.04380625,0.00010899,2]
[333716014,1722402638363,-6475.04380617,0.00010899,2]
[333716015,1722402638374,-6475.04380617,0.00010899,2]
[333716016,1722402638387,-6475.04380617,0.00010899,2]
[333716017,1722402638398,-6475.04380617,0.00010899,2]
[333716018,1722402638408,-6475.04380617,0.00010899,2]
[333716019,1722402638419,-6475.04380617,0.00010899,2]
[333716020,1722402638429,-6475.04380617,0.00010899,2]
[333716021,1722402638439,-6475.04380617,0.00010899,2]
[333716022,1722402638449,-378.96716383,0.00010899,2]
[333716023,1722402638458,-378.96716374,0.00010899,2]
[333716024,1722402638470,-378.96716374,0.00010899,2]
[333716025,1722402638480,-378.96716374,0.00010899,2]
[333716026,1722402638489,-378.96716374,0.00010899,2]
[333716027,1722402638499,-378.96716374,0.00010899,2]
[333716028,1722402638509,-378.96716374,0.00010899,2]
[333716029,1722402638519,-378.96716374,0.00010899,2]
[333716030,1722402638528,-378.96716374,0.00010899,2]
[333716031,1722402638538,-1283.09635256,0.000109,2]
[333716032,1722402638547,-1000.0,0.000109,2]
[333716033,1722402638558,-2060.3683,0.000109,2]
[333716034,1722402638567,-183.29947893,0.000109,2]
[333716035,1722402638577,-1753.6959,0.000109,2]
[333716036,1722402638587,-6475.04380617,0.000109,2]
[333716038,1722402638597,-5521.08733222,0.000109,2]
[333716040,1722402638606,-378.96716374,0.000109,2]
[333716042,1722402638617,-255.0,0.00010912,2]
[333716044,1722402638627,-250.0,0.00010959,2]
[333716046,1722402638638,-408.5008925,0.00010998,2]
[333716048,1722402638649,-184.7790977,0.00010998,2]
[333716050,1722402638660,-8424.5601861,0.00010998,2]
[333716052,1722402638670,-1509.29273388,0.00010999,3]
[333716054,1722402638680,-210.64448715,0.00010999,2]
[333716056,1722402638690,-2970.59642694,0.00010999,2]
[333716057,1722402638699,-64936.38054708,0.00011,2]
[333716059,1722402638709,-1294688.63643649,0.00011,2]
[333716069,1722402640066,-639.49,0.00011,2]
[333716070,1722402640122,-262.11462984,0.00011,2]
[333716071,1722402640342,-328.555,0.00011,2]
[333716072,1722402640472,-3162.60000008,0.00011,2]
[333716122,1722402643154,-1476.14963941,0.0001,2]
[333716123,1722402643164,-339.46422547,0.00010325,2]
[333716124,1722402643173,-243.84160598,0.00010999,2]
[333716125,1722402643183,-1485.29821347,0.00010999,2]
[333716126,1722402643192,-111645.0167859,0.00011,2]
[333716127,1722402643204,-2758.26798979,0.00011,2]
[333716128,1722402643217,-789.99,0.00011,2]
[333716420,1722402645928,-12241.41519043,0.00011,2]
[333716421,1722402645940,-791.15440754,0.00011,2]
[333716427,1722402646042,-3224.51028132,0.00011,2]
[333716430,1722402646059,-6567.4,0.00011,2]
[333716462,1722402673925,401.0,0.0001789,120]
[333716463,1722402674401,401.0,0.0001788,120]
[333716464,1722402675854,401.0,0.0001787,120]
[333716465,1722402675918,401.0,0.0001789,120]
[333716466,1722402676138,401.0,0.0001788,120]
[333716467,1722402676683,401.0,0.0001787,120]
[333716468,1722402677164,401.0,0.0001789,120]
[333716469,1722402677658,401.0,0.0001788,120]
[333716470,1722402678135,401.0,0.0001789,120]
[333716471,1722402678623,407.0,0.0001788,120]
[333716475,1722402792859,658.0,0.0001789,120]
[333716476,1722402793545,150.5,0.0001789,120]
[333716477,1722402793576,658.0,0.0001788,120]
[333716478,1722402793855,150.5,0.0001788,120]
[333716479,1722402793883,658.0,0.0001787,120]
[333716480,1722402794317,150.5,0.0001787,120]
[333716481,1722402794344,658.0,0.0001789,120]
[333716482,1722402794772,150.5,0.0001789,120]
[333716483,1722402794804,658.0,0.0001788,120]
[333716484,1722402795274,658.0,0.0001787,120]
[333716485,1722402795306,150.5,0.0001788,120]
[333716486,1722402797049,658.0,0.0001789,120]
[333716487,1722402797118,251.5,0.0001787,120]
[333716488,1722402797229,658.0,0.0001788,120]
[333716489,1722402797392,658.0,0.0001789,120]
[333716490,1722402797960,662.0,0.0001788,120]
[333716491,1722402877940,577.76,0.0001337,30]
[333716493,1722403152880,165.0,0.0001789,120]
[333716494,1722403153340,165.0,0.0001788,120]
[333716495,1722403153807,165.0,0.0001787,120]
[333716496,1722403154345,165.0,0.0001789,120]
[333716497,1722403154833,165.0,0.0001788,120]
[333716498,1722403155308,165.0,0.0001787,120]
[333716499,1722403155790,165.0,0.0001789,120]
[333716500,1722403156256,165.0,0.0001788,120]
[333716501,1722403156722,165.0,0.0001789,120]
[333716502,1722403157207,166.76,0.0001788,120]
[333716503,1722403172883,319.64,8.219e-05,2]
[333716508,1722403231593,790.38017243,8.219e-05,2]
[333716509,1722403236996,155.0,8.219e-05,2]
[333716511,1722403277384,797.06604498,8.219e-05,2]
[333716512,1722403332239,637.62259109,8.219e-05,2]
[333716513,1722403345498,274.01441915,8.219e-05,2]
[333716514,1722403436652,529.61,0.0001337,30]
[333716519,1722403672681,303.65,8.219e-05,2]
[333716591,1722403832772,-338.81,9.539e-05,2]
[333716592,1722403832781,-600.0,9.59e-05,2]
[333716593,1722403832791,-300.0,9.601e-05,2]
[333716594,1722403832801,-23900.0,9.602e-05,2]
[333716595,1722403832811,-400.0,9.855e-05,2]
[333716596,1722403832821,-400.0,9.9e-05,3]
[333716597,1722403832831,-292.72,9.9e-05,2]
[333716598,1722403832840,-171.36,9.977e-05,2]
[333716599,1722403832850,-250.0,9.984e-05,2]
[333716600,1722403832859,-371.64791517,0.0001,2]
[333716601,1722403832869,-499.99,0.0001,2]
[333716602,1722403832879,-1566.35,0.0001,2]
[333716603,1722403832888,-6522.9,0.0001,2]
[333716604,1722403832897,-150.99,0.0001,2]
[333716605,1722403832907,-900.0,0.0001,3]
[333716606,1722403832916,-1300.0,0.000101,3]
[333716607,1722403832926,-850.25,0.00010192,2]
[333716608,1722403832935,-425.65,0.00010192,2]
[333716609,1722403832945,-528.66,0.00010192,2]
[333716610,1722403832954,-1800.0,0.000102,3]
[333716611,1722403832964,-2200.0,0.000103,3]
[333716612,1722403832973,-339.46422547,0.00010325,2]
[333716613,1722403832983,-530.28,0.00010378,2]
[333716614,1722403832992,-400.0,0.000104,3]
[333716615,1722403833002,-303.65,0.00010455,2]
[333716616,1722403833012,-150.26,0.00010466,2]
[333716617,1722403833022,-150.0,0.00010466,2]
[333716618,1722403833031,-150.0,0.00010466,2]
[333716619,1722403833041,-150.0,0.00010466,2]
[333716620,1722403833050,-400.0,0.000105,3]
[333716621,1722403833060,-1934.297496,0.00010529,2]
[333716622,1722403833070,-204.979461,0.00010529,2]
[333716623,1722403833079,-271.676341,0.00010529,2]
[333716624,1722403833089,-1902.15514,0.00010529,2]
[333716625,1722403833098,-420.0,0.00010561,2]
[333716626,1722403833108,-400.0,0.000106,3]
[333716627,1722403833117,-4901.12389803,0.0001065,2]
[333716628,1722403833127,-1934.297496,0.0001066,2]
[333716629,1722403833137,-1902.15514,0.0001066,2]
[333716630,1722403833149,-425.8,0.00010678,2]
[333716631,1722403833159,-530.28,0.00010678,2]
[333716632,1722403833170,-425.8,0.00010678,2]
[333716633,1722403833180,-530.28,0.00010678,2]
[333716634,1722403833190,-530.28,0.00010678,2]
[333716635,1722403833200,-425.8,0.00010678,2]
[333716636,1722403833210,-425.8,0.00010678,2]
[333716637,1722403833219,-530.28,0.00010678,2]
[333716638,1722403833229,-530.28,0.00010678,2]
[333716639,1722403833241,-425.8,0.00010678,2]
[333716640,1722403833251,-530.28,0.00010678,2]
[333716641,1722403833262,-425.8,0.00010678,2]
[333716642,1722403833281,-530.28,0.00010678,2]
[333716643,1722403833291,-425.8,0.00010678,2]
[333716644,1722403833301,-6926.9133,0.00010699,2]
[333716645,1722403833313,-7476.2555,0.00010699,2]
[333716646,1722403833323,-1000.0,0.00010699,2]
[333716647,1722403833333,-2500.0,0.00010699,2]
[333716648,1722403833343,-400.0,0.000107,3]
[333716649,1722403833353,-600.0,0.00010789,2]
[333716650,1722403833363,-1934.297496,0.00010792,2]
[333716651,1722403833373,-1902.15514,0.00010792,2]
[333716652,1722403833383,-7287.14336633,0.00010799,2]
[333716653,1722403833410,-442.78390852,0.00010799,2]
[333716659,1722403837848,-1024.42347234,0.00010799,2]
[333716660,1722403837860,-995.36520928,0.00010799,2]
[333716661,1722403837871,-405.79384232,0.00010799,2]
[333716662,1722403837915,-932.0,0.00010799,2]
[333716663,1722403837926,-308.951889,0.00010799,2]
[333716664,1722403837976,-2402.65881645,0.00010799,2]
[333716665,1722403837989,-2630.86294999,0.00010799,2]
[333716666,1722403838001,-27115.70704577,0.00010799,2]
[333716667,1722403838010,-14134.7226,0.00010799,2]
[333716668,1722403838020,-1079.2798,0.00010799,2]
[333716669,1722403838029,-500.0,0.00010799,2]
[333716670,1722403838038,-1588.3385,0.00010799,2]
[333716671,1722403838048,-334.5742,0.00010799,2]
[333716672,1722403838057,-100000.0,0.00010799,2]
[333716673,1722403838067,-827.0,0.000108,3]
[333716674,1722403838076,-1994.0,0.00010862,2]
[333716675,1722403838085,-3283.0,0.00010862,2]
[333716676,1722403838095,-1301.0,0.00010862,2]
[333716677,1722403838104,-5121.0,0.00010862,2]
[333716678,1722403838113,-5830.0,0.00010862,2]
[333716679,1722403838123,-1202.0,0.00010862,2]
[333716680,1722403838132,-38367.0,0.00010862,2]
[333716681,1722403838141,-1669.0,0.00010862,2]
[333716682,1722403838152,-2394.031,0.00010862,2]
[333716683,1722403838161,-1000.0,0.00010899,2]
[333716684,1722403838170,-4284.49902713,0.00010899,2]
[333716685,1722403838180,-4284.4990271,0.00010899,2]
[333716686,1722403838190,-4284.4990271,0.00010899,2]
[333716687,1722403838199,-4284.4990271,0.00010899,2]
[333716688,1722403838208,-4284.4990271,0.00010899,2]
[333716689,1722403838217,-4284.4990271,0.00010899,2]
[333716691,1722403838227,-4284.4990271,0.00010899,2]
[333716693,1722403838236,-4284.4990271,0.00010899,2]
[333716694,1722403838245,-4284.4990271,0.00010899,2]
[333716695,1722403838255,-584.79958922,0.00010899,2]
[333716696,1722403838264,-584.79958915,0.00010899,2]
[333716697,1722403838273,-584.79958915,0.00010899,2]
[333716699,1722403838283,-584.79958915,0.00010899,2]
[333716701,1722403838292,-584.79958915,0.00010899,2]
[333716703,1722403838301,-584.79958915,0.00010899,2]
[333716705,1722403838310,-584.79958915,0.00010899,2]
[333716707,1722403838320,-584.79958915,0.00010899,2]
[333716709,1722403838329,-584.79958915,0.00010899,2]
[333716711,1722403838338,-6711.7706,0.000109,2]
[333716712,1722403838347,-1000.0,0.000109,2]
[333716714,1722403838356,-5754.4194,0.000109,2]
[333716716,1722403838366,-4284.4990271,0.000109,2]
[333716718,1722403838374,-158.02600733,0.000109,2]
[333716720,1722403838383,-584.79958915,0.000109,2]
[333716722,1722403838393,-1305.93063724,0.000109,2]
[333716724,1722403838404,-1934.297496,0.00010923,2]
[333716726,1722403838413,-1902.15514,0.00010923,2]
[333716728,1722403838424,-1000.0,0.00010959,2]
[333716729,1722403838434,-1000.0,0.00010959,2]
[333716732,1722403838445,-1000.0,0.00010959,2]
[333716733,1722403838454,-1000.0,0.00010959,2]
[333716734,1722403838463,-1000.0,0.00010959,2]